[Event "*** SCC Grand Prix: Titled Tuesday Blitz"]
[Site "Chess.com"]
[Date "2020.06.02"]
[Round "1"]
[White "Margarita2907"]
[Black "ChainsOfFantasia"]
[Result "1/2-1/2"]
[WhiteElo "2069"]
[BlackElo "2483"]
[TimeControl "180+1"]
[EndTime "10:09:40 PDT"]
[Termination "Game drawn by repetition"]

1. d4 {[%clk 0:02:55.7]} 1... Nf6 {[%clk 0:02:58.1]} 2. c4 {[%clk 0:02:53.9]}
2... e6 {[%clk 0:02:57.8]} 3. Nf3 {[%clk 0:02:51.7]} 3... d5 {[%clk 0:02:58.7]}
4. e3 {[%clk 0:02:43.2]} 4... Be7 {[%clk 0:02:54.1]} 5. Nc3 {[%clk 0:02:38.4]}
5... O-O {[%clk 0:02:43.8]} 6. b3 {[%clk 0:02:37.7]} 6... b6 {[%clk 0:02:43.5]}
7. Bb2 {[%clk 0:02:36.8]} 7... Bb7 {[%clk 0:02:44]} 8. Bd3 {[%clk 0:02:34.8]}
8... Nbd7 {[%clk 0:02:43.7]} 9. O-O {[%clk 0:02:32.9]} 9... c5 {[%clk
0:02:43.5]} 10. Qe2 {[%clk 0:02:30.1]} 10... Ne4 {[%clk 0:02:39]} 11. Ne5 {[%clk
0:02:20.1]} 11... f6 {[%clk 0:02:30.2]} 12. Nxd7 {[%clk 0:02:18.6]} 12... Qxd7
{[%clk 0:02:31.1]} 13. f3 {[%clk 0:02:15.2]} 13... Nxc3 {[%clk 0:02:29.8]} 14.
Bxc3 {[%clk 0:02:14.2]} 14... Rad8 {[%clk 0:02:25.1]} 15. Rad1 {[%clk 0:02:11]}
15... Qc7 {[%clk 0:02:22.8]} 16. Bb2 {[%clk 0:02:01.2]} 16... Bd6 {[%clk
0:02:09.1]} 17. h3 {[%clk 0:01:55]} 17... Kh8 {[%clk 0:01:19.2]} 18. e4 {[%clk
0:01:43.5]} 18... cxd4 {[%clk 0:01:15.7]} 19. Bxd4 {[%clk 0:01:40.4]} 19... dxe4
{[%clk 0:00:52.5]} 20. Bxe4 {[%clk 0:01:37.3]} 20... Bc5 {[%clk 0:00:48.6]} 21.
Bxc5 {[%clk 0:01:29.6]} 21... Qxc5+ {[%clk 0:00:49.5]} 22. Kh1 {[%clk
0:01:29.3]} 22... Qe5 {[%clk 0:00:49.6]} 23. Qc2 {[%clk 0:01:16.3]} 23... Bxe4
{[%clk 0:00:47.8]} 24. Qxe4 {[%clk 0:00:55.5]} 24... Qxe4 {[%clk 0:00:47.8]} 25.
fxe4 {[%clk 0:00:54]} 25... Kg8 {[%clk 0:00:48.1]} 26. Kg1 {[%clk 0:00:52.6]}
26... Kf7 {[%clk 0:00:47.8]} 27. Kf2 {[%clk 0:00:53.1]} 27... Ke7 {[%clk
0:00:47.9]} 28. Ke3 {[%clk 0:00:51.1]} 28... g5 {[%clk 0:00:34.4]} 29. b4 {[%clk
0:00:23.4]} 29... h5 {[%clk 0:00:30.5]} 30. c5 {[%clk 0:00:20.4]} 30... bxc5
{[%clk 0:00:31.4]} 31. bxc5 {[%clk 0:00:19.8]} 31... Rc8 {[%clk 0:00:29.5]} 32.
Rc1 {[%clk 0:00:18.3]} 32... Rc6 {[%clk 0:00:29.6]} 33. Rfd1 {[%clk 0:00:14.7]}
33... Rfc8 {[%clk 0:00:28.9]} 34. Kd4 {[%clk 0:00:14.9]} 34... Rxc5 {[%clk
0:00:23.3]} 35. Rxc5 {[%clk 0:00:09.8]} 35... Rd8+ {[%clk 0:00:23.7]} 36. Rd5
{[%clk 0:00:09.5]} 36... exd5 {[%clk 0:00:23.2]} 37. exd5 {[%clk 0:00:09.6]}
37... Rc8 {[%clk 0:00:19]} 38. Re1+ {[%clk 0:00:07.3]} 38... Kd7 {[%clk
0:00:19.4]} 39. Re6 {[%clk 0:00:05.7]} 39... Rc2 {[%clk 0:00:19.8]} 40. Rxf6
{[%clk 0:00:04.8]} 40... Rxg2 {[%clk 0:00:15.5]} 41. Rf7+ {[%clk 0:00:04.6]}
41... Kd6 {[%clk 0:00:15.6]} 42. Rxa7 {[%clk 0:00:04.5]} 42... Rd2+ {[%clk
0:00:14]} 43. Ke4 {[%clk 0:00:02.2]} 43... Rh2 {[%clk 0:00:08.4]} 44. Ra6+
{[%clk 0:00:02]} 44... Kd7 {[%clk 0:00:07.4]} 45. Rg6 {[%clk 0:00:01.9]} 45...
Rxh3 {[%clk 0:00:03.8]} 46. Rxg5 {[%clk 0:00:01.5]} 46... h4 {[%clk 0:00:04.7]}
47. Rg7+ {[%clk 0:00:01.3]} 47... Kd6 {[%clk 0:00:04.5]} 48. Rh7 {[%clk
0:00:01.9]} 48... Rh1 {[%clk 0:00:04.3]} 49. Kf4 {[%clk 0:00:02.4]} 49... Kxd5
{[%clk 0:00:04.4]} 50. Kg4 {[%clk 0:00:02.4]} 50... Ke4 {[%clk 0:00:04.8]} 51.
Rxh4 {[%clk 0:00:02.8]} 51... Rg1+ {[%clk 0:00:03.2]} 52. Kh5+ {[%clk
0:00:02.6]} 52... Kf5 {[%clk 0:00:03.8]} 53. Rh2 {[%clk 0:00:01.7]} 53... Rg8
{[%clk 0:00:02.2]} 54. Kh4 {[%clk 0:00:01.4]} 54... Kf4 {[%clk 0:00:01.7]} 55.
Rf2+ {[%clk 0:00:01.5]} 55... Ke3 {[%clk 0:00:02.2]} 56. Rf1 {[%clk 0:00:01.5]}
56... Ke2 {[%clk 0:00:02.4]} 57. Rf7 {[%clk 0:00:02]} 57... Ke3 {[%clk
0:00:03.3]} 58. Rf1 {[%clk 0:00:01.4]} 58... Kd4 {[%clk 0:00:04.2]} 59. Rf7
{[%clk 0:00:01.9]} 59... Ke4 {[%clk 0:00:04.9]} 60. Rf6 {[%clk 0:00:02.5]} 60...
Ke5 {[%clk 0:00:05.8]} 61. Rf7 {[%clk 0:00:03]} 61... Kd5 {[%clk 0:00:05.6]} 62.
Rf2 {[%clk 0:00:03.6]} 62... Ke6 {[%clk 0:00:06]} 63. Rf1 {[%clk 0:00:03]} 63...
Ke5 {[%clk 0:00:06.2]} 64. Rf2 {[%clk 0:00:03.5]} 64... Ke4 {[%clk 0:00:06.5]}
65. Rf1 {[%clk 0:00:03.9]} 65... Ke3 {[%clk 0:00:07.4]} 66. Rf7 {[%clk 0:00:04]}
66... Rg1 {[%clk 0:00:07.4]} 67. Rf6 {[%clk 0:00:04.2]} 67... Ke4 {[%clk
0:00:07.5]} 68. Rh6 {[%clk 0:00:04.2]} 68... Kf5 {[%clk 0:00:06.9]} 69. Ra6
{[%clk 0:00:04.1]} 69... Kf4 {[%clk 0:00:04.9]} 70. Ra4+ {[%clk 0:00:04.2]}
70... Kf3 {[%clk 0:00:05.3]} 71. Ra3+ {[%clk 0:00:04.7]} 71... Kf2 {[%clk
0:00:05.7]} 72. Ra7 {[%clk 0:00:03.8]} 72... Ke3 {[%clk 0:00:04.8]} 73. Re7+
{[%clk 0:00:03.6]} 73... Kd4 {[%clk 0:00:05]} 74. Rd7+ {[%clk 0:00:03.7]} 74...
Ke5 {[%clk 0:00:04.6]} 75. Rf7 {[%clk 0:00:04.3]} 75... Kd5 {[%clk 0:00:05.1]}
76. Rf2 {[%clk 0:00:03.4]} 76... Kc4 {[%clk 0:00:05.1]} 77. Rf8 {[%clk
0:00:03.8]} 77... Kb4 {[%clk 0:00:05.5]} 78. Ra8 {[%clk 0:00:03.9]} 78... Kc3
{[%clk 0:00:05]} 79. Rc8+ {[%clk 0:00:03.4]} 79... Kb4 {[%clk 0:00:05]} 80. Rd8
{[%clk 0:00:03.8]} 80... Ka3 {[%clk 0:00:05.1]} 81. Ra8+ {[%clk 0:00:04.3]}
81... Kb4 {[%clk 0:00:05.3]} 82. Rb8+ {[%clk 0:00:04.9]} 82... Ka4 {[%clk
0:00:04.8]} 83. Ra8+ {[%clk 0:00:05]} 83... Kb4 {[%clk 0:00:05.3]} 84. Rb8+
{[%clk 0:00:05.7]} 84... Ka4 {[%clk 0:00:05.8]} 85. Ra8+ {[%clk 0:00:06.3]}
85... Kb4 {[%clk 0:00:06.3]} 1/2-1/2

[Event "*** SCC Grand Prix: Titled Tuesday Blitz"]
[Site "Chess.com"]
[Date "2020.06.02"]
[Round "1"]
[White "vanyakuba"]
[Black "Hrant_ChessMood"]
[Result "1-0"]
[WhiteElo "2460"]
[BlackElo "2932"]
[TimeControl "180+1"]
[EndTime "10:09:50 PDT"]
[Termination "vanyakuba won on time"]

1. e4 {[%clk 0:03:00.9]} 1... c6 {[%clk 0:02:58.1]} 2. d4 {[%clk 0:03:00.8]}
2... d5 {[%clk 0:02:59]} 3. exd5 {[%clk 0:03:01.6]} 3... cxd5 {[%clk 0:02:57.6]}
4. c4 {[%clk 0:03:02.5]} 4... Nf6 {[%clk 0:02:56.8]} 5. Nc3 {[%clk 0:03:02.8]}
5... e6 {[%clk 0:02:55.2]} 6. Nf3 {[%clk 0:03:02.5]} 6... Bb4 {[%clk 0:02:53.2]}
7. cxd5 {[%clk 0:03:02.5]} 7... Nxd5 {[%clk 0:02:52.8]} 8. Bd2 {[%clk
0:03:02.8]} 8... Nc6 {[%clk 0:02:51.9]} 9. Bd3 {[%clk 0:03:02.3]} 9... Be7
{[%clk 0:02:52.2]} 10. a3 {[%clk 0:02:58.6]} 10... O-O {[%clk 0:02:51]} 11. O-O
{[%clk 0:02:57.6]} 11... b6 {[%clk 0:02:43.3]} 12. Re1 {[%clk 0:02:46.5]} 12...
Bb7 {[%clk 0:02:38.8]} 13. Ne4 {[%clk 0:02:39.1]} 13... Nf6 {[%clk 0:02:34.8]}
14. Bg5 {[%clk 0:02:31.1]} 14... Nxd4 {[%clk 0:01:50.7]} 15. Bxf6 {[%clk
0:02:11.6]} 15... Nxf3+ {[%clk 0:01:35.5]} 16. Qxf3 {[%clk 0:02:10.9]} 16...
Bxf6 {[%clk 0:01:22.6]} 17. Nxf6+ {[%clk 0:02:10.5]} 17... gxf6 {[%clk
0:01:22.7]} 18. Bxh7+ {[%clk 0:01:48.1]} 18... Kg7 {[%clk 0:00:51.7]} 19. Qg4+
{[%clk 0:01:34.3]} 19... Kh8 {[%clk 0:00:23.1]} 20. Qh5 {[%clk 0:01:27.6]} 20...
Kg7 {[%clk 0:00:15.7]} 21. Re3 {[%clk 0:01:18.1]} 21... Rh8 {[%clk 0:00:14.2]}
22. Qg4+ {[%clk 0:00:21.3]} 22... Kf8 {[%clk 0:00:14.3]} 23. Rd1 {[%clk
0:00:15.3]} 23... Qc7 {[%clk 0:00:14.3]} 24. Be4 {[%clk 0:00:09]} 24... Bxe4
{[%clk 0:00:10.1]} 25. Qxe4 {[%clk 0:00:08.3]} 25... Rc8 {[%clk 0:00:10.3]} 26.
g3 {[%clk 0:00:08]} 26... f5 {[%clk 0:00:07.9]} 27. Qd4 {[%clk 0:00:07.6]} 27...
Kg8 {[%clk 0:00:06.8]} 28. Red3 {[%clk 0:00:04.9]} 28... Qe7 {[%clk 0:00:03.5]}
29. Qd7 {[%clk 0:00:04.6]} 29... Qxd7 {[%clk 0:00:03.1]} 30. Rxd7 {[%clk
0:00:05.5]} 30... Rc2 {[%clk 0:00:01.8]} 31. Rxa7 {[%clk 0:00:05.1]} 31... Rxb2
{[%clk 0:00:01.6]} 32. Rdd7 {[%clk 0:00:05.6]} 32... Rh7 {[%clk 0:00:02.1]} 33.
Rab7 {[%clk 0:00:04.6]} 33... f4 {[%clk 0:00:01.6]} 34. a4 {[%clk 0:00:03.9]}
34... f3 {[%clk 0:00:01.7]} 35. Rd1 {[%clk 0:00:03]} 35... Ra2 {[%clk
0:00:01.9]} 36. Rxb6 {[%clk 0:00:02.7]} 36... Rxa4 {[%clk 0:00:02.6]} 37. Rb3
{[%clk 0:00:03.2]} 37... Ra5 {[%clk 0:00:03.1]} 38. Rxf3 {[%clk 0:00:03.5]}
38... Ra7 {[%clk 0:00:03]} 39. Kg2 {[%clk 0:00:04]} 39... Kg7 {[%clk 0:00:03.7]}
40. Rd4 {[%clk 0:00:04.5]} 40... Rh5 {[%clk 0:00:04.2]} 41. Rg4+ {[%clk
0:00:05]} 41... Kf8 {[%clk 0:00:04.8]} 42. h4 {[%clk 0:00:05.9]} 42... Rd5
{[%clk 0:00:05.2]} 43. Rgf4 {[%clk 0:00:06.4]} 43... Ke8 {[%clk 0:00:05.6]} 44.
Rg4 {[%clk 0:00:05.8]} 44... Kf8 {[%clk 0:00:06]} 45. Rg5 {[%clk 0:00:05.5]}
45... Rd4 {[%clk 0:00:05.5]} 46. Re5 {[%clk 0:00:04.9]} 46... Re7 {[%clk
0:00:04.5]} 47. Rb5 {[%clk 0:00:05.2]} 47... Kg7 {[%clk 0:00:04.9]} 48. Rb8
{[%clk 0:00:05.1]} 48... Kh7 {[%clk 0:00:05.3]} 49. Rbb3 {[%clk 0:00:04.9]}
49... Rd5 {[%clk 0:00:05.7]} 50. Rbd3 {[%clk 0:00:05.4]} 50... Re5 {[%clk
0:00:05.2]} 51. Rde3 {[%clk 0:00:05.8]} 51... Ra5 {[%clk 0:00:05.8]} 52. Ra3
{[%clk 0:00:06]} 52... Rb5 {[%clk 0:00:04.5]} 53. Ra4 {[%clk 0:00:06.3]} 53...
Reb7 {[%clk 0:00:03.9]} 54. Kh3 {[%clk 0:00:06.3]} 54... Kg7 {[%clk 0:00:04.3]}
55. Rg4+ {[%clk 0:00:06.3]} 55... Kh7 {[%clk 0:00:04.9]} 56. Rg5 {[%clk
0:00:06.9]} 56... Rb1 {[%clk 0:00:04.3]} 57. Rc5 {[%clk 0:00:05.4]} 57... Rh1+
{[%clk 0:00:04.3]} 58. Kg2 {[%clk 0:00:05.5]} 58... Rhb1 {[%clk 0:00:05.2]} 59.
Rh5+ {[%clk 0:00:04.2]} 59... Kg7 {[%clk 0:00:05.7]} 60. Rg5+ {[%clk 0:00:04.5]}
60... Kh7 {[%clk 0:00:06.2]} 61. Rh5+ {[%clk 0:00:04.8]} 61... Kg7 {[%clk
0:00:06.3]} 62. Rg5+ {[%clk 0:00:05.3]} 62... Kf8 {[%clk 0:00:06.4]} 63. h5
{[%clk 0:00:05.3]} 63... R1b5 {[%clk 0:00:05.9]} 64. Rxb5 {[%clk 0:00:04.5]}
64... Rxb5 {[%clk 0:00:06.8]} 65. g4 {[%clk 0:00:05.4]} 65... Kg7 {[%clk
0:00:07.5]} 66. Kg3 {[%clk 0:00:05.9]} 66... Rb1 {[%clk 0:00:07.3]} 67. Rc3
{[%clk 0:00:05.9]} 67... Rg1+ {[%clk 0:00:07.4]} 68. Kf3 {[%clk 0:00:06]} 68...
Rh1 {[%clk 0:00:07.1]} 69. Rc7 {[%clk 0:00:05.8]} 69... Kf6 {[%clk 0:00:06.5]}
70. Kf4 {[%clk 0:00:05.7]} 70... Rh4 {[%clk 0:00:04.2]} 71. f3 {[%clk 0:00:06]}
71... e5+ {[%clk 0:00:02.2]} 72. Ke4 {[%clk 0:00:06]} 72... Rh1 {[%clk
0:00:03.1]} 73. Rc6+ {[%clk 0:00:06.4]} 73... Kg5 {[%clk 0:00:03.6]} 74. Kxe5
{[%clk 0:00:05.9]} 74... Re1+ {[%clk 0:00:04.1]} 75. Kd4 {[%clk 0:00:06.3]}
75... Re8 {[%clk 0:00:02.7]} 76. Kd3 {[%clk 0:00:06.5]} 76... Re7 {[%clk
0:00:02.8]} 77. Kd2 {[%clk 0:00:06.8]} 77... Kh4 {[%clk 0:00:02.1]} 78. Rf6
{[%clk 0:00:06.3]} 78... Kg3 {[%clk 0:00:01.6]} 79. Rf5 {[%clk 0:00:06.6]} 79...
Kf2 {[%clk 0:00:01.9]} 80. Kd3 {[%clk 0:00:06.7]} 80... Rd7+ {[%clk 0:00:02.4]}
81. Ke4 {[%clk 0:00:06.9]} 81... Kg3 {[%clk 0:00:03.3]} 82. Ke5 {[%clk
0:00:06.7]} 82... Kh4 {[%clk 0:00:03.2]} 83. Kf6 {[%clk 0:00:07]} 83... Kg3
{[%clk 0:00:03.4]} 84. Kg7 {[%clk 0:00:07.1]} 84... Rd6 {[%clk 0:00:03.9]} 85.
h6 {[%clk 0:00:07.4]} 85... Rg6+ {[%clk 0:00:02.2]} 86. Kh7 {[%clk 0:00:06.9]}
1-0

[Event "*** SCC Grand Prix: Titled Tuesday Blitz"]
[Site "Chess.com"]
[Date "2020.06.02"]
[Round "1"]
[White "vanImpe"]
[Black "Twitch_ElhamBlitz05"]
[Result "1/2-1/2"]
[WhiteElo "2347"]
[BlackElo "2683"]
[TimeControl "180+1"]
[EndTime "10:09:52 PDT"]
[Termination "Game drawn - insufficient material"]

1. g3 {[%clk 0:03:00.9]} 1... Nf6 {[%clk 0:02:59.2]} 2. Bg2 {[%clk 0:03:01]}
2... g6 {[%clk 0:03:00.1]} 3. d4 {[%clk 0:03:01.1]} 3... Bg7 {[%clk 0:03:00.8]}
4. e4 {[%clk 0:03:01.4]} 4... d6 {[%clk 0:03:00.7]} 5. Ne2 {[%clk 0:03:01.9]}
5... O-O {[%clk 0:03:01.1]} 6. O-O {[%clk 0:03:02.5]} 6... Nbd7 {[%clk
0:03:01.7]} 7. c4 {[%clk 0:03:02.6]} 7... e5 {[%clk 0:03:02.1]} 8. Nbc3 {[%clk
0:03:02.9]} 8... exd4 {[%clk 0:03:01.7]} 9. Nxd4 {[%clk 0:03:02.8]} 9... Re8
{[%clk 0:03:02.4]} 10. h3 {[%clk 0:03:02.3]} 10... Nc5 {[%clk 0:03:02.4]} 11.
Re1 {[%clk 0:03:02]} 11... c6 {[%clk 0:02:57.2]} 12. Qc2 {[%clk 0:03:02]} 12...
Bd7 {[%clk 0:02:42.3]} 13. Bf4 {[%clk 0:02:59.1]} 13... Nfxe4 {[%clk 0:02:38.1]}
14. Nxe4 {[%clk 0:02:58.8]} 14... Bxd4 {[%clk 0:02:31.5]} 15. Rad1 {[%clk
0:02:44.8]} 15... Ne6 {[%clk 0:01:59.4]} 16. Bxd6 {[%clk 0:02:24.2]} 16... f5
{[%clk 0:01:48.9]} 17. Nc3 {[%clk 0:02:13.3]} 17... Qf6 {[%clk 0:01:44.1]} 18.
Ba3 {[%clk 0:02:06.8]} 18... Rad8 {[%clk 0:01:38.4]} 19. Ne2 {[%clk 0:02:06.8]}
19... Bc5 {[%clk 0:01:34.1]} 20. Bxc5 {[%clk 0:02:01.1]} 20... Nxc5 {[%clk
0:01:35]} 21. Nf4 {[%clk 0:01:54.1]} 21... a5 {[%clk 0:01:27.4]} 22. b3 {[%clk
0:01:52.6]} 22... Bc8 {[%clk 0:01:22.7]} 23. h4 {[%clk 0:01:48.8]} 23... Qf7
{[%clk 0:01:21]} 24. a3 {[%clk 0:01:45.9]} 24... Ne6 {[%clk 0:01:15.8]} 25. Nxe6
{[%clk 0:01:38.7]} 25... Bxe6 {[%clk 0:01:16.7]} 26. Rxd8 {[%clk 0:01:37.1]}
26... Rxd8 {[%clk 0:01:16.8]} 27. Qe2 {[%clk 0:01:37.6]} 27... Re8 {[%clk
0:01:12.5]} 28. a4 {[%clk 0:01:20.6]} 28... Bd7 {[%clk 0:01:04.5]} 29. Qd2
{[%clk 0:01:20.5]} 29... Rxe1+ {[%clk 0:00:58.5]} 30. Qxe1 {[%clk 0:01:20.5]}
30... b6 {[%clk 0:00:59]} 31. Qe3 {[%clk 0:01:17.5]} 31... Qe6 {[%clk
0:00:34.8]} 32. Qxb6 {[%clk 0:01:15.6]} 32... Qe1+ {[%clk 0:00:29]} 33. Kh2
{[%clk 0:01:15.7]} 33... Kf7 {[%clk 0:00:26.8]} 34. Qa7 {[%clk 0:01:11.1]} 34...
Ke8 {[%clk 0:00:23.5]} 35. Qe3+ {[%clk 0:01:06.1]} 35... Qxe3 {[%clk 0:00:23.2]}
36. fxe3 {[%clk 0:01:06.6]} 36... Ke7 {[%clk 0:00:22.9]} 37. c5 {[%clk
0:01:04.1]} 37... Kd8 {[%clk 0:00:16.5]} 38. Bf3 {[%clk 0:00:53.8]} 38... Be6
{[%clk 0:00:12.8]} 39. Bd1 {[%clk 0:00:53.6]} 39... Ke7 {[%clk 0:00:13.1]} 40.
Kg2 {[%clk 0:00:53]} 40... Kf6 {[%clk 0:00:13.5]} 41. Kf3 {[%clk 0:00:47.5]}
41... Ke5 {[%clk 0:00:13.4]} 42. Bc2 {[%clk 0:00:47.4]} 42... Bd5+ {[%clk
0:00:12.8]} 43. Ke2 {[%clk 0:00:46]} 43... h6 {[%clk 0:00:13.7]} 44. Bd1 {[%clk
0:00:42.7]} 44... Be4 {[%clk 0:00:12.6]} 45. Kd2 {[%clk 0:00:38.9]} 45... Kd5
{[%clk 0:00:12.9]} 46. Kc3 {[%clk 0:00:38.6]} 46... Kxc5 {[%clk 0:00:12.7]} 47.
Be2 {[%clk 0:00:39]} 47... g5 {[%clk 0:00:12.3]} 48. hxg5 {[%clk 0:00:38.7]}
48... hxg5 {[%clk 0:00:13.2]} 49. Bc4 {[%clk 0:00:37.9]} 49... Bd5 {[%clk
0:00:12.5]} 50. Bd3 {[%clk 0:00:37.7]} 50... Be4 {[%clk 0:00:10.5]} 51. Bc4
{[%clk 0:00:37.8]} 51... Kd6 {[%clk 0:00:09.3]} 52. Kd4 {[%clk 0:00:37.2]} 52...
c5+ {[%clk 0:00:07.5]} 53. Kc3 {[%clk 0:00:35.8]} 53... Bd5 {[%clk 0:00:08.1]}
54. Bd3 {[%clk 0:00:35.3]} 54... Ke5 {[%clk 0:00:08.4]} 55. Bc2 {[%clk
0:00:34.2]} 55... Be4 {[%clk 0:00:07.9]} 56. Bd1 {[%clk 0:00:34.1]} 56... Bb1
{[%clk 0:00:06.2]} 57. Bf3 {[%clk 0:00:33.5]} 57... Be4 {[%clk 0:00:05.4]} 58.
Be2 {[%clk 0:00:33.6]} 58... Bd5 {[%clk 0:00:03.7]} 59. Bd3 {[%clk 0:00:32.2]}
59... Kf6 {[%clk 0:00:04.2]} 60. Bc2 {[%clk 0:00:26.9]} 60... Be6 {[%clk
0:00:04.1]} 61. Bd3 {[%clk 0:00:25.2]} 61... Ke5 {[%clk 0:00:03.2]} 62. Bc2
{[%clk 0:00:24.9]} 62... Bc8 {[%clk 0:00:03.7]} 63. Bd3 {[%clk 0:00:24.3]} 63...
Bb7 {[%clk 0:00:03.4]} 64. Kc4 {[%clk 0:00:23.8]} 64... Bd5+ {[%clk 0:00:03.5]}
65. Kxc5 {[%clk 0:00:22.8]} 65... Bxb3 {[%clk 0:00:03.7]} 66. Kb5 {[%clk
0:00:23]} 66... Bd5 {[%clk 0:00:02.6]} 67. Kxa5 {[%clk 0:00:22.9]} 67... Be4
{[%clk 0:00:03.3]} 68. Be2 {[%clk 0:00:22.9]} 68... Bd5 {[%clk 0:00:01.8]} 69.
Bd3 {[%clk 0:00:21.6]} 69... Be4 {[%clk 0:00:02.6]} 70. Bb5 {[%clk 0:00:20.5]}
70... Bc2 {[%clk 0:00:03.2]} 71. Bc6 {[%clk 0:00:19]} 71... Be4 {[%clk
0:00:03.8]} 72. Kb6 {[%clk 0:00:19.1]} 72... Bxc6 {[%clk 0:00:02.3]} 73. Kxc6
{[%clk 0:00:19.4]} 73... Ke4 {[%clk 0:00:03.2]} 74. a5 {[%clk 0:00:19.9]} 74...
Kxe3 {[%clk 0:00:04.1]} 75. a6 {[%clk 0:00:20.5]} 75... f4 {[%clk 0:00:04.9]}
76. a7 {[%clk 0:00:20.9]} 76... fxg3 {[%clk 0:00:03.8]} 77. a8=Q {[%clk
0:00:20.2]} 77... g2 {[%clk 0:00:04.4]} 78. Qa1 {[%clk 0:00:15.3]} 78... Kf2
{[%clk 0:00:05.3]} 79. Qb2+ {[%clk 0:00:15.4]} 79... Kf1 {[%clk 0:00:05.2]} 80.
Qc1+ {[%clk 0:00:15.3]} 80... Kf2 {[%clk 0:00:06.1]} 81. Qd2+ {[%clk 0:00:14.7]}
81... Kf1 {[%clk 0:00:06.6]} 82. Qd1+ {[%clk 0:00:13.8]} 82... Kf2 {[%clk
0:00:07]} 83. Qd4+ {[%clk 0:00:13]} 83... Kf1 {[%clk 0:00:06.9]} 84. Qf6+ {[%clk
0:00:12.9]} 84... Ke2 {[%clk 0:00:06.5]} 85. Qxg5 {[%clk 0:00:12.9]} 85... Kf2
{[%clk 0:00:07.2]} 86. Qf4+ {[%clk 0:00:12.8]} 86... Ke2 {[%clk 0:00:06.9]} 87.
Qg3 {[%clk 0:00:11.2]} 87... Kf1 {[%clk 0:00:07.3]} 88. Qf3+ {[%clk 0:00:11.3]}
88... Kg1 {[%clk 0:00:07.5]} 89. Kd5 {[%clk 0:00:11.5]} 89... Kh2 {[%clk
0:00:07.3]} 90. Qh5+ {[%clk 0:00:10.5]} 90... Kg3 {[%clk 0:00:08.2]} 91. Qg5+
{[%clk 0:00:09.5]} 91... Kf2 {[%clk 0:00:09.1]} 92. Qf4+ {[%clk 0:00:09.2]}
92... Ke2 {[%clk 0:00:09.5]} 93. Qg3 {[%clk 0:00:08.6]} 93... Kf1 {[%clk
0:00:10.4]} 94. Qf3+ {[%clk 0:00:08.8]} 94... Kg1 {[%clk 0:00:10.2]} 95. Ke4
{[%clk 0:00:08.9]} 95... Kh2 {[%clk 0:00:11.1]} 96. Qh5+ {[%clk 0:00:07]} 96...
Kg3 {[%clk 0:00:12]} 97. Qg5+ {[%clk 0:00:06.9]} 97... Kf2 {[%clk 0:00:12.9]}
98. Qf4+ {[%clk 0:00:06]} 98... Ke1 {[%clk 0:00:13.5]} 99. Qg3+ {[%clk
0:00:05.7]} 99... Kf1 {[%clk 0:00:13.9]} 100. Kf3 {[%clk 0:00:05.3]} 100... g1=Q
{[%clk 0:00:12.6]} 101. Qxg1+ {[%clk 0:00:03.4]} 101... Kxg1 {[%clk 0:00:13.5]}
1/2-1/2

[Event "*** SCC Grand Prix: Titled Tuesday Blitz"]
[Site "Chess.com"]
[Date "2020.06.02"]
[Round "2"]
[White "jefferyx"]
[Black "Jeffinho023"]
[Result "1-0"]
[WhiteElo "2933"]
[BlackElo "2571"]
[TimeControl "180+1"]
[EndTime "10:11:53 PDT"]
[Termination "jefferyx won by resignation"]

1. d4 {[%clk 0:02:55.3]} 1... Nf6 {[%clk 0:02:59.3]} 2. c4 {[%clk 0:02:56]} 2...
e6 {[%clk 0:02:58.8]} 3. Nc3 {[%clk 0:02:56.7]} 3... d5 {[%clk 0:02:58.5]} 4.
Bg5 {[%clk 0:02:53.3]} 4... Nbd7 {[%clk 0:02:55.5]} 5. e3 {[%clk 0:02:52.7]}
5... c6 {[%clk 0:02:54.2]} 6. Nf3 {[%clk 0:02:52.8]} 6... Qa5 {[%clk 0:02:53.5]}
7. Nd2 {[%clk 0:02:53.1]} 7... dxc4 {[%clk 0:02:51.3]} 8. Bxf6 {[%clk 0:02:53]}
8... Nxf6 {[%clk 0:02:51.6]} 9. Nxc4 {[%clk 0:02:53.9]} 9... Qc7 {[%clk
0:02:51.8]} 10. g3 {[%clk 0:02:53.7]} 10... Be7 {[%clk 0:02:47.7]} 11. Bg2
{[%clk 0:02:54.1]} 11... O-O {[%clk 0:02:48.2]} 12. O-O {[%clk 0:02:54.1]} 12...
b6 {[%clk 0:02:43.8]} 13. Rc1 {[%clk 0:02:50.6]} 13... Bb7 {[%clk 0:02:42.6]}
14. Ne5 {[%clk 0:02:50.6]} 14... Rac8 {[%clk 0:02:27]} 15. Nb5 {[%clk
0:02:46.2]} 15... Qd7 {[%clk 0:02:24.8]} 16. Nxd7 {[%clk 0:02:45.6]} 1-0

[Event "*** SCC Grand Prix: Titled Tuesday Blitz"]
[Site "Chess.com"]
[Date "2020.06.02"]
[Round "2"]
[White "Luibov_AN"]
[Black "elegant285"]
[Result "0-1"]
[WhiteElo "2051"]
[BlackElo "2371"]
[TimeControl "180+1"]
[EndTime "10:12:20 PDT"]
[Termination "elegant285 won by resignation"]

1. d4 {[%clk 0:03:00.9]} 1... Nf6 {[%clk 0:02:59.1]} 2. Nf3 {[%clk 0:03:00.7]}
2... d5 {[%clk 0:02:58.7]} 3. c4 {[%clk 0:02:55.1]} 3... e6 {[%clk 0:02:58.4]}
4. Nc3 {[%clk 0:02:53.8]} 4... a6 {[%clk 0:02:58.5]} 5. e3 {[%clk 0:02:50.3]}
5... Be7 {[%clk 0:02:55.6]} 6. Bd2 {[%clk 0:02:49]} 6... O-O {[%clk 0:02:50.9]}
7. b3 {[%clk 0:02:48.9]} 7... b6 {[%clk 0:02:48.2]} 8. Bd3 {[%clk 0:02:47]} 8...
Bb7 {[%clk 0:02:48.5]} 9. O-O {[%clk 0:02:46.5]} 9... Nbd7 {[%clk 0:02:48.7]}
10. Ne5 {[%clk 0:02:46.1]} 10... dxc4 {[%clk 0:02:39.3]} 11. Bxc4 {[%clk
0:02:39.8]} 11... c5 {[%clk 0:02:36.5]} 12. f4 {[%clk 0:02:37.6]} 12... b5
{[%clk 0:02:26.4]} 13. Bd3 {[%clk 0:02:36.9]} 13... cxd4 {[%clk 0:02:24.5]} 14.
exd4 {[%clk 0:02:36.3]} 14... Nxe5 {[%clk 0:02:24.7]} 0-1

[Event "*** SCC Grand Prix: Titled Tuesday Blitz"]
[Site "Chess.com"]
[Date "2020.06.02"]
[Round "2"]
[White "avantage_ru"]
[Black "Lovinski"]
[Result "1-0"]
[WhiteElo "2726"]
[BlackElo "2391"]
[TimeControl "180+1"]
[EndTime "10:13:03 PDT"]
[Termination "avantage_ru won by resignation"]

1. g3 {[%clk 0:03:00.9]} 1... d5 {[%clk 0:02:58.8]} 2. Nf3 {[%clk 0:03:00.1]}
2... Nf6 {[%clk 0:02:58.5]} 3. Bg2 {[%clk 0:03:00]} 3... e6 {[%clk 0:02:59]} 4.
O-O {[%clk 0:02:59.9]} 4... c5 {[%clk 0:02:59.3]} 5. d3 {[%clk 0:02:59.8]} 5...
Nc6 {[%clk 0:02:59.2]} 6. Nbd2 {[%clk 0:03:00.4]} 6... Be7 {[%clk 0:02:59.1]} 7.
e4 {[%clk 0:03:00.2]} 7... O-O {[%clk 0:02:59.6]} 8. Re1 {[%clk 0:02:59.1]} 8...
b5 {[%clk 0:02:59.4]} 9. e5 {[%clk 0:02:58.2]} 9... Nd7 {[%clk 0:02:58.4]} 10.
Nf1 {[%clk 0:02:58.8]} 10... Bb7 {[%clk 0:02:57]} 11. h4 {[%clk 0:02:57.9]}
11... Qb6 {[%clk 0:02:56.9]} 12. N1h2 {[%clk 0:02:57.3]} 12... Rfc8 {[%clk
0:02:56.7]} 13. Ng4 {[%clk 0:02:56.3]} 13... Qd8 {[%clk 0:02:56.7]} 14. Bg5
{[%clk 0:02:47.7]} 14... a5 {[%clk 0:02:53.1]} 15. Qd2 {[%clk 0:02:47.2]} 15...
a4 {[%clk 0:02:51.8]} 16. a3 {[%clk 0:02:45.9]} 16... b4 {[%clk 0:02:49.2]} 17.
Qf4 {[%clk 0:02:41.6]} 17... Qf8 {[%clk 0:02:23.4]} 18. Rab1 {[%clk 0:02:29.5]}
18... Ba6 {[%clk 0:02:21.5]} 19. h5 {[%clk 0:02:23.3]} 19... h6 {[%clk
0:02:08.7]} 20. Nxh6+ {[%clk 0:02:18.6]} 20... gxh6 {[%clk 0:02:09.6]} 21. Bxh6
{[%clk 0:02:18.7]} 21... Qd8 {[%clk 0:02:07.3]} 22. Qg4+ {[%clk 0:02:17.9]} 1-0